Workbook

Sheet Sayfa1
B10: x
B11: =+C11 -> 0.7686488568 | C11: =+SIN(SQRT(B11)) -> 0.7686488568
B13: x | C13: f(x)
B14: 0.7686488576 | C14: =+SIN(SQRT(B14))-B14 -> -5.261538982e-10
B17: x | C17: f(x)
B18: 0.7686488565 | C18: =+SIN(SQRT(B18))-B18 -> 1.413879014e-10
C25: x | D25: f(x)
C26: 6.50439196 | D26: =+SIN(C26)+COS(1+C26^2)-1 -> -8.479217328e-12
A27: x
A28: 0 | B28: =+SIN(A28)+COS(1+A28^2)-1 -> -0.4596976941
A29: 0.5 | B29: =+SIN(A29)+COS(1+A29^2)-1 -> -0.205252099
A30: 1 | B30: -0.5746758517
A31: 1.5 | B31: -0.9966346895
A32: 2 | B32: 0.1929596123
A33: 2.5 | B33: 0.1663963174
A34: 3 | B34: -1.697951521
A35: 3.5 | B35: -0.5754977576
A36: 4 | B36: -2.031965833
A37: 4.5 | B37: -2.715223719
A38: 5 | B38: -1.312004952
A39: 5.5 | B39: -0.7192745793
A40: 6 | B40: -0.5140014463
A41: 6.5 | B41: -0.04123947408
A42: 7 | B42: 0.6219526272
A43: 7.5 | B43: 0.701983236
A44: 8 | B44: -0.5730956046
A45: 8.5 | B45: -0.7473830952
A46: 9 | B46: 0.3617961831
A47: 9.5 | B47: -2.064827835
A48: 10 | B48: -0.6520162411

Sheet Sayfa3
B8: q
B10: =+B11*180/PI() -> 129.9587943 | C10: =+(30*PI()+25*SIN(B11))/50 -> 2.268208853
B11: =+C10 -> 2.268208853
B13: q | C13: f(t,q)
B14: 129.9587943 | C14: =30*PI()-50*B15+25*SIN(B15) -> 2.668087973e-12
B15: =+B14*PI()/180 -> 2.268208853
B17: q | C17: f(t,q)
B18: 129.9587944 | C18: =30*PI()-50*B19+25*SIN(B19) -> -9.48985388e-08
B19: =+B18*PI()/180 -> 2.268208854

Sheet Sayfa2
B8: x | C8: c
B9: 0.6023554644 | C9: =10-20*(EXP(-0.2*B9)-EXP(-0.75*B9)) -> 5
B12: g | C12: 9.81 | D12: m/s2
B13: v0 | C13: 20 | D13: m/s
B14: y0 | C14: 1.8 | D14: m
B15: x | C15: 40 | D15: m
B16: q0 | C16: y
B17: 36.38008432 | C17: =+TAN(B18)*C15-C12/(2*C13^2*COS(B18)^2)*C15^2+C14 -> 1
B18: =+B17*PI()/180 -> 0.6349522535
